bitfinex/quotes_SOLUSD_20220102
["timestamp","ask_amount","ask_price","bid_price","bid_amount"]
[1641095970961,8.70844467,177.73,177.63,8.9432]
[1641095971362,9.46844467,177.73,177.63,8.9432]
[1641095972080,1.3249,177.72,177.63,8.9432]
[1641095972280,9.7683,177.72,177.63,8.9432]
[1641095972480,10.0283,177.72,177.63,8.9432]
[1641095973381,10.5283,177.72,177.63,8.9432]
[1641095974186,10.0283,177.72,177.63,8.9432]
[1641095974387,1.5849,177.72,177.63,9.2032]
[1641095974585,1.3249,177.72,177.63,9.2032]
[1641095974786,1.3249,177.72,177.63,17.3132]
[1641095976989,1.3249,177.72,177.63,18.5433]
[1641095984297,1.5849,177.72,177.63,18.5433]
[1641095987503,1.3249,177.72,177.63,18.5433]
[1641095987704,1.3249,177.72,177.63,25.0853]
[1641095989205,2.92476438,177.72,177.63,25.0853]
[1641095989802,1.3249,177.72,177.63,25.0853]
[1641095990002,1.3249,177.72,177.63,18.5433]
[1641095997718,1.3249,177.72,177.63,19.96999368]
[1641095999627,1.3249,177.72,177.63,18.5433]
[1641096000418,1.3249,177.72,177.63,18.2833]
[1641096000620,1.5849,177.72,177.63,10.1733]
[1641096002222,1.5849,177.72,177.63,10.4333]
[1641096003024,1.3249,177.72,177.64,1.42669368]
[1641096003223,1.59986438,177.74,177.65,22.78742794]
[1641096003425,1.59986438,177.74,177.65,23.28742794]
[1641096003625,1.59986438,177.75,177.66,8.11]
[1641096003825,1.59986438,177.75,177.67,1.3291]
[1641096004025,1.59986438,177.75,177.67,1.5891]
[1641096004227,1.59986438,177.74,177.67,2.0891]
[1641096004426,1.59986438,177.74,177.7,8.44]
[1641096004627,1.59986438,177.74,177.7,8.7]
[1641096004927,1.59986438,177.74,177.7,9.2]
[1641096006153,1.59986438,177.75,177.7,9.2]
[1641096006551,1.59986438,177.75,177.7,8.44]
[1641096006753,1.59986438,177.75,177.7,8.94]
[1641096007155,1.59986438,177.75,177.7,0.5]
[1641096007353,1.59986438,177.75,177.7,0.26]
[1641096007556,1.59986438,177.75,177.69,0.5]
[1641096007754,1.2905,177.77,177.67,2.0891]
[1641096007755,1.59986438,177.74,177.67,2.0891]
[1641096008655,1.59986438,177.74,177.7,8.4398]
[1641096008853,1.59986438,177.75,177.7,8.9398]
[1641096010058,1.85986438,177.75,177.68,8.4406]
[1641096010456,1.85986438,177.75,177.68,8.9406]
[1641096010658,1.59986438,177.74,177.68,8.9406]
[1641096010859,1.59986438,177.74,177.68,0.5]
[1641096011060,1.85986438,177.74,177.63,28.136]
[1641096011260,10.30236438,177.74,177.65,8.4423]
[1641096011460,1.59986438,177.73,177.65,0.5]
[1641096011660,2.92646438,177.73,177.65,0.5]
[1641096011960,3.18646438,177.73,177.61,24.27173937]
[1641096012167,1.59986438,177.71,177.61,24.27173937]
[1641096012360,1.59986438,177.71,177.64,8.4429]
[1641096012562,1.85986438,177.71,177.61,0.5]
[1641096012963,1.85986438,177.71,177.6,30.2146]
[1641096013462,1.2802,177.7,177.61,25.10308998]
[1641096013666,1.2802,177.7,177.63,8.4434]
[1641096013869,1.2802,177.7,177.63,8.9434]
[1641096013870,1.5402,177.7,177.63,8.9434]
[1641096014567,1.59986438,177.71,177.63,9.2034]
[1641096014967,1.59986438,177.72,177.63,10.63009368]
[1641096015772,1.2571,177.73,177.63,10.63009368]
[1641096015973,1.5171,177.73,177.63,10.63009368]
[1641096016573,1.5171,177.73,177.63,9.2034]
[1641096019278,1.5171,177.73,177.63,8.9434]
[1641096019475,1.59986438,177.72,177.63,8.9434]
[1641096019880,1.85986438,177.72,177.63,8.9434]
[1641096020078,1.59986438,177.72,177.63,8.9434]
[1641096020480,1.59986438,177.72,177.63,9.2034]
[1641096020882,1.85986438,177.72,177.63,9.2034]
[1641096021086,0.26,177.72,177.63,9.2034]
[1641096021486,3.11696438,177.73,177.63,9.2034]
[1641096025013,3.11696438,177.73,177.63,8.7034]
[1641096026414,3.11696438,177.73,177.63,9.2034]
[1641096030016,3.11696438,177.73,177.63,10.63009368]
[1641096032825,2.85696438,177.73,177.63,10.63009368]
[1641096034324,3.11696438,177.73,177.63,10.63009368]
[1641096037829,3.11696438,177.73,177.63,10.37009368]
[1641096038025,3.11696438,177.73,177.63,8.9434]
[1641096038427,1.59986438,177.71,177.63,8.9434]
[1641096038826,1.85986438,177.71,177.63,8.9434]
[1641096039026,1.59986438,177.7,177.63,8.9434]
[1641096039428,1.85986438,177.7,177.63,8.9434]
[1641096040731,1.85986438,177.7,177.63,0.5]
[1641096040929,1.59986438,177.69,177.62,8.9438]
[1641096041331,1.85986438,177.69,177.62,8.9438]
[1641096041728,0.26,177.69,177.62,8.9438]
[1641096042129,3.15746438,177.7,177.62,8.9438]
[1641096042327,2.89746438,177.7,177.62,9.2038]
[1641096042728,1.59986438,177.71,177.62,9.2038]
[1641096043129,1.85986438,177.71,177.62,10.5099]
[1641096043559,0.26,177.71,177.62,10.5099]
[1641096043959,1.85986438,177.72,177.62,10.5099]
[1641096045057,1.59986438,177.72,177.62,25.1069]
[1641096045457,1.59986438,177.72,177.62,26.53359368]
[1641096045660,2.91906438,177.73,177.62,26.53359368]
[1641096048261,1.3192,177.73,177.62,26.53359368]
[1641096048759,1.3192,177.73,177.62,24.96749368]
[1641096048960,1.3192,177.73,177.62,23.5408]
[1641096049363,1.3192,177.73,177.62,24.7992]
[1641096049760,1.5792,177.73,177.62,24.7992]
[1641096050361,1.5792,177.73,177.62,25.0592]
[1641096054676,1.5792,177.73,177.67,8.4413]
[1641096054871,1.5792,177.73,177.68,26.24127324]
[1641096056372,1.5792,177.73,177.68,26.74127324]
[1641096060180,1.5792,177.73,177.68,26.24127324]
[1641096062577,1.3192,177.73,177.68,26.50127324]
[1641096062778,1.3192,177.73,177.68,35.44217324]
[1641096064280,10.04106438,177.76,177.67,8.4414]
[1641096064478,10.04106438,177.76,177.62,8.11]
[1641096064479,1.3025,177.75,177.62,8.11]
[1641096064679,1.59986438,177.73,177.64,0.5]
[1641096065279,1.59986438,177.72,177.65,23.07006583]
[1641096065483,1.59986438,177.72,177.65,32.01216583]
[1641096065983,1.59986438,177.72,177.65,32.27216583]
[1641096066783,1.5577,177.73,177.65,32.27216583]
[1641096070312,1.2977,177.73,177.65,32.27216583]
[1641096079523,1.2977,177.73,177.65,33.50796583]
[1641096080323,1.2977,177.73,177.65,34.93465951]
[1641096083828,1.2977,177.73,177.65,34.67465951]
[1641096084130,1.5577,177.73,177.65,33.24796583]
[1641096085329,1.5577,177.73,177.65,33.50796583]
[1641096093438,1.2977,177.73,177.65,33.50796583]
[1641096093640,1.5577,177.73,177.65,33.50796583]
[1641096104372,1.59986438,177.75,177.65,33.50796583]
[1641096104573,2.81046438,177.75,177.65,41.61796583]
[1641096105973,1.2106,177.75,177.65,41.61796583]
[1641096108875,2.81046438,177.75,177.65,41.61796583]
[1641096109881,1.2106,177.75,177.65,41.61796583]
[1641096117186,9.652,177.75,177.65,41.61796583]
[1641096117789,9.912,177.75,177.65,41.61796583]
[1641096119288,9.652,177.75,177.65,41.61796583]
[1641096119788,1.2106,177.75,177.65,41.61796583]
[1641096122896,1.7106,177.75,177.65,41.61796583]
[1641096123693,1.2106,177.75,177.65,41.61796583]
[1641096124295,1.2106,177.75,177.65,33.50796583]
[1641096125497,2.81046438,177.75,177.65,33.50796583]
[1641096125896,11.25186438,177.75,177.65,33.50796583]
[1641096126498,2.81046438,177.75,177.65,33.50796583]
[1641096129721,11.25206438,177.75,177.65,33.24796583]
[1641096129924,12.01206438,177.75,177.65,32.01216583]
[1641096130121,12.01206438,177.75,177.65,31.51216583]
[1641096130323,20.12206438,177.75,177.65,31.51216583]
[1641096131123,1.59986438,177.72,177.65,31.51216583]
[1641096131325,1.59986438,177.72,177.65,32.27216583]
[1641096131523,1.59986438,177.72,177.65,32.01216583]
[1641096131924,1.59986438,177.74,177.65,32.01216583]
[1641096132123,1.85986438,177.74,177.65,32.01216583]
[1641096132326,2.35986438,177.74,177.65,32.01216583]
[1641096132523,1.59986438,177.73,177.65,32.01216583]
[1641096132723,10.04216438,177.73,177.65,31.51216583]
[1641096132923,10.80216438,177.73,177.65,31.77216583]
[1641096133126,10.80216438,177.73,177.65,8.7021]
[1641096133327,12.04616438,177.73,177.65,8.7021]
[1641096133725,11.54616438,177.73,177.65,8.7021]
[1641096133931,12.04616438,177.73,177.65,8.7021]
[1641096134827,1.59986438,177.72,177.65,8.7021]
[1641096135026,10.04256438,177.72,177.65,8.7021]
[1641096135228,10.54256438,177.72,177.65,8.7021]
[1641096135627,1.59986438,177.72,177.65,8.7021]
[1641096138230,2.80916438,177.72,177.65,9.2021]
[1641096139031,1.2093,177.72,177.65,9.2021]
[1641096144739,1.59986438,177.76,177.65,9.2021]
[1641096144940,1.59986438,177.76,177.7,8.4401]
[1641096145148,1.59986438,177.76,177.71,31.54035969]
[1641096145341,2.81676438,177.77,177.71,31.54035969]
[1641096145539,2.81676438,177.77,177.71,31.80035969]
[1641096147740,2.81676438,177.77,177.71,0.26]
[1641096147945,11.25716438,177.77,177.71,0.26]
[1641096148145,11.25716438,177.77,177.7,0.26]
[1641096148368,12.01716438,177.77,177.66,75.7161]
[1641096148546,12.01716438,177.77,177.66,76.4761]
[1641096148749,12.01716438,177.77,177.67,27.8477394]
[1641096148947,12.01716438,177.77,177.67,28.3477394]
[1641096149149,1.59986438,177.76,177.67,28.6077394]
[1641096149347,10.04076438,177.76,177.68,8.441]
[1641096149548,10.30076438,177.76,177.68,8.701]
[1641096149749,10.30076438,177.76,177.68,9.201]
[1641096150448,10.30076438,177.76,177.68,8.701]
[1641096151152,10.30076438,177.76,177.68,9.201]
[1641096155153,10.04076438,177.76,177.68,9.201]
[1641096155554,10.30076438,177.76,177.68,9.201]
[1641096157879,10.30076438,177.76,177.68,8.701]
[1641096158280,1.59986438,177.75,177.68,8.701]
[1641096158882,1.59986438,177.75,177.68,9.201]
[1641096159485,2.90246438,177.75,177.68,9.201]
[1641096159883,1.3026,177.75,177.68,9.201]
[1641096161484,1.59986438,177.75,177.68,9.201]
[1641096161997,1.59986438,177.77,177.68,9.201]
[1641096162788,1.59986438,177.77,177.68,10.525]
[1641096163187,2.84146438,177.78,177.68,10.525]
[1641096163387,3.34146438,177.78,177.68,10.525]
[1641096164787,11.78136438,177.78,177.68,10.265]
[1641096164989,11.78136438,177.78,177.68,8.941]
[1641096165190,1.59986438,177.77,177.68,8.941]
[1641096166095,1.59986438,177.76,177.68,8.941]
[1641096166293,1.59986438,177.76,177.68,9.201]
[1641096166696,1.2416,177.78,177.68,9.201]
[1641096168294,2.84146438,177.78,177.68,9.201]
[1641096168696,1.2416,177.78,177.68,9.201]
[1641096170695,77.49306438,177.8,177.69,9.53669368]
[1641096170899,77.49306438,177.8,177.75,24.70412863]
[1641096171097,1.59986438,177.8,177.75,24.96412863]
[1641096171297,1.59986438,177.8,177.75,25.46412863]
[1641096171502,1.2731,177.81,177.75,25.46412863]
[1641096172301,1.2731,177.81,177.75,33.90162863]
[1641096173201,10.03776438,177.83,177.75,33.90162863]
[1641096173401,2.09986438,177.83,177.75,33.90162863]
[1641096175203,0.5,177.83,177.75,33.90162863]
[1641096175401,11.80706438,177.84,177.75,33.90162863]
[1641096175803,3.36996438,177.84,177.75,33.90162863]
[1641096177002,2.86996438,177.84,177.75,33.90162863]
[1641096178205,1.2701,177.84,177.75,35.13422863]
[1641096178605,1.59986438,177.83,177.75,35.13422863]
[1641096185511,1.59986438,177.83,177.75,34.87422863]
[1641096186312,1.59986438,177.82,177.75,34.87422863]
[1641096187013,1.59986438,177.82,177.75,35.13422863]
[1641096188215,1.59986438,177.82,177.75,10.4301]
[1641096188416,1.59986438,177.82,177.75,1.4926]
[1641096188618,1.2701,177.84,177.69,9.53669368]
[1641096188816,1.2701,177.84,177.69,37.4899]
[1641096188817,0.5,177.82,177.69,37.4899]
[1641096189215,0.5,177.82,177.7,23.47849622]
[1641096189418,1.59986438,177.83,177.71,8.4391]
[1641096189639,3.07306438,177.83,177.71,8.4391]
[1641096189840,8.4392,177.8,177.71,8.9391]
[1641096190045,8.4392,177.8,177.71,9.1991]
[1641096190642,1.2509,177.79,177.71,9.1991]
[1641096195449,9.6902,177.79,177.71,9.1991]
[1641096198751,9.9502,177.79,177.71,8.9391]
[1641096198952,11.55006438,177.79,177.71,8.9391]
[1641096199352,12.05006438,177.79,177.71,8.9391]
[1641096199652,11.55006438,177.79,177.71,8.9391]
[1641096200051,11.55006438,177.79,177.71,9.1991]
[1641096200752,12.05006438,177.79,177.71,8.9391]
[1641096202057,12.05006438,177.79,177.71,9.1991]
[1641096202455,11.55006438,177.79,177.71,9.1991]
[1641096202655,12.05006438,177.79,177.71,8.6991]
[1641096202860,10.4502,177.79,177.71,9.1991]
[1641096203056,10.4502,177.79,177.71,8.6991]
[1641096203356,10.4502,177.79,177.71,9.1991]
[1641096203765,9.9502,177.79,177.71,9.1991]
[1641096204060,10.4502,177.79,177.71,9.1991]
[1641096205257,9.9502,177.79,177.71,9.1991]
[1641096205757,10.4502,177.79,177.71,9.1991]
[1641096213166,9.9502,177.79,177.71,8.6991]
[1641096213766,9.9502,177.79,177.71,9.1991]
[1641096214767,9.9502,177.79,177.71,8.6991]
[1641096216270,9.9502,177.79,177.71,9.1991]
[1641096218173,1.59986438,177.78,177.71,9.1991]
[1641096218370,10.03956438,177.78,177.71,9.1991]
[1641096218572,10.29956438,177.78,177.71,9.1991]
[1641096218771,10.29956438,177.78,177.71,8.6991]
[1641096219171,8.6997,177.78,177.71,8.6991]
[1641096219774,8.6997,177.78,177.71,9.1991]
[1641096220876,8.6997,177.78,177.71,8.6991]
[1641096222975,8.6997,177.78,177.71,9.1991]
[1641096225374,8.6997,177.78,177.71,0.76]
[1641096225575,8.6997,177.78,177.7,8.44]
[1641096225576,10.29956438,177.78,177.7,8.7]
[1641096227482,10.79956438,177.78,177.7,8.7]
[1641096228890,10.79956438,177.78,177.7,9.2]
[1641096228891,10.29956438,177.78,177.7,9.2]
[1641096229488,10.29956438,177.78,177.7,8.7]
[1641096229885,10.79956438,177.78,177.7,8.7]
[1641096230287,10.29956438,177.78,177.7,9.2]
[1641096230489,1.85986438,177.78,177.7,9.2]
[1641096231406,2.35986438,177.78,177.7,9.2]
[1641096231807,0.76,177.78,177.7,9.2]
[1641096232107,0.5,177.78,177.7,9.2]
[1641096232307,12.05006438,177.79,177.7,9.2]
[1641096232908,12.05006438,177.79,177.7,8.44]
[1641096233108,1.59986438,177.78,177.69,1.2532]
[1641096233309,8.442,177.74,177.64,77.1899]
[1641096233511,8.442,177.74,177.66,1.2041]
[1641096233907,8.942,177.74,177.66,1.2041]
[1641096234109,1.3166,177.73,177.66,9.6461]
[1641096234308,1.8166,177.73,177.66,1.2041]
[1641096234509,1.8166,177.73,177.61,29.36]
[1641096234510,10.5186,177.73,177.61,37.47]
[1641096234710,10.5186,177.73,177.61,1.3225]
[1641096235309,1.59986438,177.72,177.61,1.3225]
[1641096235511,8.4445,177.68,177.61,1.3225]
[1641096235709,8.4445,177.68,177.6,113.54031752]
[1641096235910,8.4445,177.68,177.6,114.04031752]
[1641096236115,8.4445,177.68,177.6,114.30031752]
[1641096238818,2.82116438,177.71,177.6,114.30031752]
[1641096239016,2.82116438,177.71,177.61,8.11]
[1641096239216,1.59986438,177.71,177.61,8.11]
[1641096239417,1.59986438,177.71,177.61,8.87]
[1641096239617,2.85346438,177.77,177.61,8.87]
[1641096239818,8.4418,177.74,177.63,28.1372]
[1641096240019,8.4418,177.74,177.63,36.5072]
[1641096240220,8.4418,177.74,177.63,37.0072]
[1641096240618,8.4418,177.74,177.67,8.4414]
[1641096240819,8.4418,177.74,177.63,37.0072]
[1641096241017,8.4418,177.74,177.63,8.87]
[1641096241620,8.9418,177.74,177.65,8.442]
[1641096241819,8.4418,177.74,177.65,8.442]
[1641096242020,8.9418,177.74,177.65,9.202]
[1641096242420,8.4418,177.74,177.65,9.202]
[1641096242621,8.7018,177.74,177.65,9.202]
[1641096242821,8.7018,177.74,177.65,8.942]
[1641096243022,9.2018,177.74,177.65,16.014]
[1641096243225,8.7018,177.74,177.65,16.014]
[1641096244125,8.7018,177.74,177.65,16.274]
[1641096246824,8.4418,177.74,177.65,16.274]
[1641096247024,8.441,177.75,177.65,16.274]
[1641096247924,8.441,177.75,177.65,9.202]
[1641096248325,8.701,177.75,177.65,9.202]
[1641096249228,1.2073,177.74,177.65,9.202]
[1641096249427,9.6488,177.74,177.65,9.202]
[1641096249725,9.9088,177.74,177.65,9.202]
[1641096252029,9.6488,177.74,177.65,9.202]
[1641096252235,1.2073,177.74,177.65,9.202]
[1641096252430,1.4673,177.74,177.65,9.202]
[1641096254633,9.9089,177.74,177.65,9.202]
[1641096256236,11.50876438,177.74,177.65,9.202]
[1641096257863,9.9089,177.74,177.65,9.202]
[1641096262766,1.4673,177.74,177.65,9.202]
[1641096263568,1.2073,177.74,177.65,9.202]
[1641096263771,74.59196438,177.77,177.66,8.11]
[1641096263970,75.84426438,177.77,177.7,8.4395]
[1641096264373,75.84426438,177.77,177.7,9.1995]
[1641096264575,1.2523,177.77,177.7,9.1995]
[1641096265973,1.2523,177.77,177.7,8.6995]
[1641096266573,1.2523,177.77,177.7,0.26]
[1641096266975,1.2523,177.77,177.67,1.9613]
[1641096267172,1.2523,177.77,177.67,1.7013]
[1641096267376,1.2523,177.77,177.67,1.9613]
[1641096267577,9.6926,177.77,177.67,10.4022]
[1641096269378,11.29246438,177.77,177.67,10.4022]
[1641096271577,2.85216438,177.77,177.67,10.4022]
[1641096272588,2.85216438,177.77,177.67,18.5122]
[1641096273483,1.2523,177.77,177.67,18.5122]
[1641096274487,2.85216438,177.77,177.67,18.5122]
[1641096275089,1.2523,177.77,177.67,18.5122]
[1641096277422,1.2523,177.77,177.67,24.8882]
[1641096279023,1.2523,177.77,177.67,18.5122]
[1641096280923,11.27406438,177.79,177.67,18.5122]
[1641096281326,9.6742,177.79,177.67,18.5122]
[1641096282528,10.8796,177.79,177.67,18.5122]
[1641096284329,2.4404,177.79,177.67,18.5122]
[1641096285931,2.4404,177.79,177.67,19.93889368]
[1641096286930,10.8795,177.79,177.67,19.93889368]
[1641096287331,9.6445,177.79,177.67,19.93889368]
[1641096287838,11.24436438,177.79,177.67,19.93889368]
[1641096288835,9.6445,177.79,177.67,19.93889368]
[1641096291335,1.2054,177.79,177.67,19.93889368]
[1641096300147,79.96746438,177.82,177.67,19.93889368]
[1641096300749,1.59986438,177.82,177.67,19.93889368]
[1641096300954,1.59986438,177.82,177.69,101.32]
[1641096301157,1.59986438,177.82,177.75,38.55761623]
[1641096301453,1.59986438,177.82,177.76,8.11]
[1641096301954,1.2308,177.83,177.76,8.87]
[1641096303570,1.2308,177.83,177.79,8.4357]
[1641096303870,1.2308,177.83,177.79,8.9357]
[1641096304171,1.2308,177.83,177.79,9.1957]
[1641096309476,74.5599,177.86,177.79,9.1957]
[1641096309677,74.0599,177.86,177.79,9.1957]
[1641096310080,1.3051,177.87,177.79,9.1957]
[1641096317889,1.59986438,177.86,177.79,9.1957]
[1641096318290,2.90496438,177.87,177.79,9.1957]
[1641096319490,2.90496438,177.87,177.79,17.3057]
[1641096328536,1.3051,177.87,177.79,17.3057]
[1641096331747,1.3051,177.87,177.79,18.5714]
[1641096341751,1.3051,177.87,177.79,18.3114]
[1641096341947,1.3051,177.87,177.79,8.9357]
[1641096342148,1.3051,177.87,177.79,0.5]
[1641096342348,2.0651,177.87,177.75,30.62151623]
[1641096342749,10.5007,177.87,177.75,30.62151623]
[1641096342950,1.59986438,177.86,177.75,30.62151623]
[1641096343349,1.59986438,177.85,177.78,8.4362]
[1641096343550,1.59986438,177.85,177.78,9.1962]
[1641096344151,1.85986438,177.86,177.78,9.1962]
[1641096344354,1.59986438,177.86,177.78,8.6962]
[1641096344551,1.59986438,177.84,177.78,8.6962]
[1641096344753,1.59986438,177.84,177.78,9.1962]
[1641096346452,1.59986438,177.84,177.78,8.6962]
[1641096346855,1.59986438,177.84,177.78,9.1962]
[1641096348256,1.59986438,177.84,177.78,8.6962]
[1641096348456,1.59986438,177.84,177.78,9.1962]
[1641096348856,1.307,177.85,177.78,9.1962]
[1641096352861,81.47726438,177.89,177.78,17.3062]
[1641096353062,1.2664,177.88,177.78,17.3062]
[1641096360099,2.86626438,177.88,177.78,17.3062]
[1641096362305,1.2664,177.88,177.78,17.3062]
[1641096364912,1.59986438,177.89,177.78,18.73289368]
[1641096365307,1.59986438,177.9,177.78,18.73289368]
[1641096365708,1.59986438,177.9,177.84,8.4311]
[1641096365906,1.59986438,177.9,177.84,17.0411]
[1641096366108,1.59986438,177.9,177.85,25.80614943]
[1641096366509,1.59986438,177.91,177.85,26.56614943]
[1641096366709,1.59986438,177.91,177.87,8.4312]
[1641096366914,1.59986438,177.91,177.87,0.5]
[1641096367112,1.59986438,177.91,177.87,0.76]
[1641096367311,1.59986438,177.92,177.87,8.87]
[1641096367613,1.59986438,177.92,177.87,14.75169368]
[1641096367810,1.59986438,177.92,177.87,15.25169368]
[1641096368013,1.59986438,177.95,177.87,15.25169368]
[1641096368411,1.59986438,177.95,177.91,8.428]
[1641096368612,1.59986438,177.95,177.92,33.99903068]
[1641096369011,1.59986438,177.95,177.92,34.75903068]
[1641096369410,1.59986438,177.97,177.92,34.75903068]
[1641096369611,1.59986438,177.97,177.94,8.4275]
[1641096369812,0.59986438,177.97,177.94,8.4275]
[1641096370013,0.59986438,177.97,177.94,9.1875]
[1641096372019,1.2749,178.0,177.94,9.1875]
[1641096372220,2.3078495,178.02,177.94,9.1875]
[1641096372621,8.69807878,178.02,177.94,9.1875]
[1641096374252,8.69807878,178.02,177.95,8.11]
[1641096374452,8.69807878,178.03,177.98,8.4259]
[1641096374655,8.69807878,178.03,177.99,30.32448782]
[1641096374858,8.69807878,178.03,177.99,30.82448782]
[1641096375155,2.3078495,178.06,177.99,31.08448782]
[1641096375755,2.3078495,178.06,178.0,8.4253]
[1641096375957,1.8078495,178.06,178.0,8.4253]
[1641096376156,1.8078495,178.06,178.0,8.9253]
[1641096376455,8.19651812,178.06,178.0,8.9253]
[1641096376656,8.19651812,178.06,178.0,8.4253]
[1641096377256,80.56254333,178.07,178.0,8.4253]
[1641096377458,80.56254333,178.07,178.0,8.6853]
[1641096377660,6.38841361,178.06,178.0,9.1853]
[1641096379564,6.38841361,178.06,178.0,8.6853]
[1641096379764,6.38841361,178.06,178.0,9.1853]
[1641096380169,80.56254333,178.07,178.0,9.1853]
[1641096394911,79.35054333,178.07,178.0,9.1853]
[1641096395511,79.35054333,178.07,178.0,8.9253]
[1641096396515,79.61054333,178.07,178.0,8.4253]
[1641096396717,79.61054333,178.07,178.0,8.9253]
[1641096396916,79.61054333,178.07,178.0,9.1853]
[1641096397516,79.61054333,178.07,178.0,8.6853]
[1641096397815,79.61054333,178.07,178.0,9.1853]
[1641096398018,79.61054333,178.07,178.0,8.4253]
[1641096398216,79.61054333,178.07,177.92,1.2173]
[1641096398417,84.94354333,178.07,177.91,8.11]
[1641096399016,84.94354333,178.07,177.92,23.14255679]
[1641096399416,84.94354333,178.07,177.92,23.64255679]
[1641096400417,84.94354333,178.07,177.95,8.4278]
[1641096400418,8.4276,178.05,177.95,8.4278]
[1641096400618,6.38870755,178.06,177.93,8.11]
[1641096400817,1.304,178.06,177.93,9.3231]
[1641096401020,1.564,178.06,177.93,11.24979368]
[1641096401218,1.564,178.06,177.93,11.50979368]
[1641096401417,1.564,178.06,177.98,8.4263]
[1641096401618,1.564,178.06,177.98,8.6863]
[1641096401917,1.564,178.06,177.98,9.1863]
[1641096402119,1.564,178.06,177.98,8.6863]
[1641096402718,1.564,178.06,177.98,9.1863]
[1641096405725,1.564,178.06,177.98,8.6863]
[1641096405926,1.564,178.06,177.98,9.1863]
[1641096407126,2.064,178.06,177.98,8.6863]
[1641096409229,1.564,178.06,177.98,8.6863]
[1641096409836,1.304,178.06,177.98,8.6863]
[1641096410033,1.304,178.06,177.98,9.1863]
[1641096410233,1.304,178.06,177.99,30.33255493]
[1641096410435,1.304,178.06,177.99,39.25845493]
[1641096410635,1.304,178.06,177.99,39.51845493]
[1641096422561,1.304,178.06,177.99,39.25845493]
[1641096422966,1.564,178.06,177.99,39.25845493]
[1641096423963,1.564,178.06,177.99,39.01845493]
[1641096425365,1.564,178.06,177.99,39.51845493]
[1641096427868,1.304,178.06,177.99,39.51845493]
[1641096440506,1.304,178.06,177.99,47.62845493]
[1641096441308,1.304,178.06,177.99,39.51845493]
[1641096441707,1.304,178.06,177.99,9.1859]
[1641096442008,1.304,178.06,177.99,0.5]
[1641096442009,1.564,178.06,177.99,0.5]
[1641096442406,1.564,178.06,177.97,9.7398]
[1641096442407,1.564,178.06,177.97,8.9268]
[1641096443611,10.4905,178.06,177.97,9.1868]
[1641096446312,10.4905,178.06,177.97,8.6868]
[1641096446712,10.4905,178.06,177.97,0.26]
[1641096447113,9.9905,178.06,177.96,9.1876]
[1641096447812,10.4905,178.06,177.96,9.1876]
[1641096454015,9.9905,178.06,177.96,9.1876]
[1641096462132,10.4905,178.06,177.96,9.1876]
[1641096462329,10.4905,178.06,177.96,8.4276]
[1641096462532,8.11,178.05,177.95,8.428]
[1641096462731,8.11,178.05,177.91,1.2997]
[1641096462931,1.2939,178.04,177.88,156.8166]
[1641096463233,9.4039,178.04,177.89,1.219]
[1641096463431,10.1639,178.04,177.89,1.219]
[1641096463630,28.0996,178.03,177.9,35.55953345]
[1641096463830,10.1639,178.04,177.9,35.55953345]
[1641096464031,0.5,178.03,177.9,35.55953345]
[1641096464232,0.5,178.03,177.9,36.31953345]
[1641096464431,10.1639,178.04,177.9,36.31953345]
[1641096464631,8.4308,177.97,177.9,36.31953345]
[1641096465035,8.6908,177.97,177.9,36.31953345]
[1641096465434,8.6908,177.97,177.9,35.81953345]
[1641096465635,8.6908,177.97,177.9,36.31953345]
[1641096467248,8.4308,177.97,177.9,36.31953345]
[1641096467441,8.4301,177.99,177.9,36.31953345]
[1641096467741,1.2088,178.0,177.9,36.31953345]
[1641096467939,0.26,177.99,177.9,36.31953345]
[1641096468540,1.4688,178.0,177.9,36.31953345]
[1641096468743,9.6382,178.0,177.9,36.31953345]
[1641096468941,9.8982,178.0,177.9,36.31953345]
[1641096471266,1.4688,178.0,177.9,36.31953345]